[Event "Western Asian Girls Chess-ch 2023"]
[Site "Colombo"]
[Date "2023.12.03"]
[Round "7.8"]
[White "Ramanayake, Nemindi Linaya"]
[Black "Sasvatha A"]
[Result "0-1"]
[ECO "D00"]
[WhiteElo "1361"]
[BlackElo "1568"]
[Annotator "NA"]
[PlyCount "124"]
[EventDate "2023.11.30"]
[EventCountry "SRI"]
[SourceTitle "playchess.com"]
[Source "ChessBase"]
[SourceQuality "1"]
[TimeControl "5400+30"]

1. d4 {[%emt 0:00:06]} Nf6 {[%emt 0:00:11]} 2. Bf4 {[%emt 0:00:11]} d5 {[%emt 0:00:06]} 3. e3 {[%emt 0:00:19]} c5 {[%emt 0:00:10]} 4. c3 {[%emt 0:00:17]} Nc6 {[%emt 0:00:16]} 5. Nd2 {[%emt 0:00:13]} Bf5 {[%emt 0:01:04]} 6. Ngf3 {[%emt 0:00:54]} Qb6 {[%emt 0:00:40]} 7. Nh4 {[%emt 0:01:36]} Bd7 {[%emt 0:01:26]} 8. Qb3 {[%emt 0:00:20]} c4 {[%emt 0:00:10]} 9. Qc2 {[%emt 0:00:17]} h6 {[%emt 0:00:08]} 10. Nhf3 {[%emt 0:00:21]} Bg4 {[%emt 0:00:20]} 11. b3 {[%emt 0:01:36]} cxb3 {[%emt 0:00:17]} 12. axb3 {[%emt 0:00:12]} e6 {[%emt 0:00:16]} 13. h3 {[%emt 0:01:43]} Bf5 {[%emt 0:00:10]} 14. Bd3 {[%emt 0:00:40]} Bxd3 {[%emt 0:00:09]} 15. Qxd3 {[%emt 0:00:05]} Be7 {[%emt 0:00:05]} 16. O-O {[%emt 0:00:25]} O-O {[%emt 0:00:07]} 17. b4 {[%emt 0:05:35]} Rfc8 {[%emt 0:01:02]} 18. Ne5 {[%emt 0:02:37]} Nxe5 {[%emt 0:00:10]} 19. Bxe5 {[%emt 0:00:30]} Nd7 {[%emt 0:00:06]} 20. Bg3 {[%emt 0:00:48]} a5 {[%emt 0:00:51]} 21. bxa5 {[%emt 0:12:52]} Rxa5 {[%emt 0:00:25]} 22. Rfb1 {[%emt 0:05:39]} Rxa1 {[%emt 0:00:37]} 23. Rxa1 {[%emt 0:00:05]} Qc6 {[%emt 0:01:48]} 24. Rb1 {[%emt 0:04:29]} b6 {[%emt 0:02:47]} 25. Rb3 {[%emt 0:04:05]} Qa4 {[%emt 0:01:41]} 26. Kh2 {[%emt 0:03:53]} Qc6 {[%emt 0:00:25]} 27. Kg1 {[%emt 0:00:56]} Qa4 {[%emt 0:05:03]} 28. Kh2 {[%emt 0:00:53]} h5 {[%emt 0:00:08]} 29. h4 {[%emt 0:05:32]} Qc6 {[%emt 0:02:21]} 30. e4 {[%emt 0:03:45]} Nf6 {[%emt 0:01:07]} 31. e5 {[%emt 0:10:23]} Ng4+ {[%emt 0:00:38]} 32. Kg1 {[%emt 0:01:05]} Ra8 {[%emt 0:00:22]} 33. f3 {[%emt 0:00:54]} Ra1+ {[%emt 0:01:00]} 34. Rb1 {[%emt 0:00:32]} Rxb1+ {[%emt 0:00:10]} 35. Nxb1 {[%emt 0:00:52]} Nh6 {[%emt 0:00:14]} 36. Be1 {[%emt 0:01:36]} Nf5 {[%emt 0:00:07]} 37. g3 {[%emt 0:00:34]} Qa4 {[%emt 0:00:28]} 38. Bf2 {[%emt 0:02:05]} Qb3 {[%emt 0:01:12]} 39. Kf1 {[%emt 0:07:27]} b5 {[%emt 0:00:38]} 40. Ke2 {[%emt 0:00:33]} Qb2+ {[%emt 0:00:50]} 41. Kf1 {[%emt 0:03:34]} b4 {[%emt 0:03:53]} 42. cxb4 {[%emt 0:02:28]} Bxb4 {[%emt 0:00:13]} 43. Kg1 {[%emt 0:00:35]} Qc1+ {[%emt 0:02:04]} 44. Kg2 {[%emt 0:05:51]} Be1 {[%emt 0:02:18]} 45. Qf1 {[%emt 0:00:54]} Qxb1 {[%emt 0:00:57]} 46. Qxe1 {[%emt 0:00:08]} Qxe1 {[%emt 0:00:33]} 47. Bxe1 {[%emt 0:00:04]} Nxd4 {[%emt 0:00:04]} 48. Bb4 {[%emt 0:01:12]} Kh7 {[%emt 0:00:16]} 49. g4 {[%emt 0:00:58]} Nc6 {[%emt 0:00:55]} 50. Bd6 {[%emt 0:01:32]} Kh6 {[%emt 0:00:50]} 51. Kf2 {[%emt 0:00:28]} Na5 {[%emt 0:01:00]} 52. Bc5 {[%emt 0:01:17]} Kg6 {[%emt 0:00:42]} 53. Ke2 {[%emt 0:03:16]} Nc4 {[%emt 0:00:34]} 54. Bd4 {[%emt 0:00:43]} Kh6 {[%emt 0:00:15]} 55. Kd3 {[%emt 0:01:19]} g5 {[%emt 0:00:23]} 56. hxg5+ {[%emt 0:04:04]} Kxg5 {[%emt 0:00:07]} 57. gxh5 {[%emt 0:00:04]} Kxh5 {[%emt 0:00:07]} 58. f4 {[%emt 0:02:08]} Kg4 {[%emt 0:00:11]} 59. Bg1 {[%emt 0:00:18]} Kxf4 {[%emt 0:00:05]} 60. Bh2+ {[%emt 0:00:03]} Kf3 {[%emt 0:00:24]} 61. Kd4 {[%emt 0:00:13]} Ne3 {[%emt 0:01:06]} 62. Bg1 {[%emt 0:02:26]} Ng4 {[%emt 0:00:09]} 0-1

[Event "Western Asian Girls Chess-ch 2023"]
[Site "Colombo"]
[Date "2023.12.04"]
[Round "8.1"]
[White "Sultanbek, Zeinep"]
[Black "Sachi Jain"]
[Result "1/2-1/2"]
[ECO "D02"]
[WhiteElo "2008"]
[BlackElo "1743"]
[Annotator "NA RC"]
[PlyCount "124"]
[EventDate "2023.11.30"]
[EventCountry "SRI"]
[SourceTitle "playchess.com"]
[Source "ChessBase"]
[SourceQuality "1"]
[TimeControl "5400+30"]

1. Nf3 {[%emt 1:31:00]} d5 {[%emt 0:00:32]} 2. g3 {[%emt 0:00:00]} e6 {[%emt 0:00:24]} 3. Bg2 {[%emt 0:00:00]} Bd6 {[%emt 0:01:24]} 4. O-O {[%emt 0:00:00]} Nf6 {[%emt 1:30:10]} 5. c4 {[%emt 0:00:00]} O-O {[%emt 0:00:00]} 6. d4 {[%emt 0:00:00]} b6 {[%emt 0:00:00]} 7. Nc3 {[%emt 0:00:00]} Bb7 {[%emt 0:00:00]} 8. e4 {[%emt 0:00:00]} Nxe4 {[%emt 0:00:00]} 9. Nxe4 {[%emt 0:00:00]} dxe4 {[%emt 0:00:00]} 10. Ng5 {[%emt 0:00:00]} Be7 {[%emt 0:00:00]} 11. Nxe4 {[%emt 0:00:00]} Qc8 {[%emt 0:00:00]} 12. Qe2 {[%emt 0:00:00]} Nd7 {[%emt 0:00:00]} 13. Rd1 {[%emt 0:00:00]} Nf6 {[%emt 0:00:00]} 14. Bg5 {[%emt 0:00:00]} Bxe4 {[%emt 0:00:00]} 15. Bxe4 {[%emt 0:00:00]} Nxe4 {[%emt 0:00:00]} 16. Bxe7 {[%emt 0:00:00]} Re8 {[%emt 0:00:00]} 17. Qxe4 {[%emt 0:00:00]} Rxe7 {[%emt 0:00:00]} 18. d5 {[%emt 0:00:00]} Qb7 {[%emt 0:00:00]} 19. Re1 {[%emt 0:00:00]} Rae8 {[%emt 0:00:00]} 20. Rad1 {[%emt 0:00:00]} h6 {[%emt 0:00:00]} 21. dxe6 {[%emt 0:00:00]} Qxe4 {[%emt 0:00:00]} 22. Rxe4 {[%emt 0:00:00]} Rxe6 {[%emt 0:00:00]} 23. Rxe6 {[%emt 0:00:00]} Rxe6 {[%emt 0:00:00]} 24. Rd8+ {[%emt 0:00:00]} Kh7 {[%emt 0:00:00]} 25. Rd7 {[%emt 0:00:00]} Rc6 {[%emt 0:00:00]} 26. b3 {[%emt 0:00:00]} Kg6 {[%emt 0:00:00]} 27. Kf1 {[%emt 0:00:00]} Kf6 {[%emt 0:00:00]} 28. Ke2 {[%emt 0:00:00]} Ke6 {[%emt 0:00:00]} 29. Rd4 {[%emt 0:00:00]} a5 {[%emt 0:00:00]} 30. h4 {[%emt 0:00:00]} Rc5 {[%emt 0:00:00]} 31. Re4+ {[%emt 0:00:00]} Kd6 {[%emt 0:00:00]} 32. Rg4 {[%emt 0:00:00]} g6 {[%emt 0:00:00]} 33. Rd4+ {[%emt 0:00:00]} Ke6 {[%emt 0:00:00]} 34. Re4+ {[%emt 0:00:00]} Kd6 {[%emt 0:00:00]} 35. Ke3 {[%emt 0:00:00]} h5 {[%emt 0:00:00]} 36. f3 {[%emt 0:00:00]} Re5 {[%emt 0:00:00]} 37. Kd4 {[%emt 0:00:00]} Rxe4+ {[%emt 0:00:00]} 38. Kxe4 {[%emt 0:00:00]} Kc5 {[%emt 0:00:00]} 39. Ke5 {[%emt 0:00:00]} a4 {[%emt 0:00:00]} 40. Kf6 {[%emt 0:00:00]} axb3 {[%emt 0:00:00]} 41. axb3 {[%emt 0:00:00]} Kb4 {[%emt 0:00:00]} 42. Kxf7 {[%emt 0:00:00]} Kxb3 {[%emt 0:00:00]} 43. Kxg6 {[%emt 0:00:00]} Kxc4 {[%emt 0:00:11]} 44. f4 {[%emt 0:00:00]} b5 {[%emt 0:00:05]} 45. f5 {[%emt 0:00:00]} b4 {[%emt 0:00:03]} 46. f6 {[%emt 0:00:00]} b3 {[%emt 0:00:04]} 47. f7 {[%emt 0:00:00]} b2 {[%emt 0:00:02]} 48. f8=Q {[%emt 0:23:30]} b1=Q+ {[%emt 0:00:05]} 49. Kxh5 {[%emt 0:00:00]} c5 {[%emt 0:02:16]} 50. Qf7+ {[%emt 0:00:00]} Kc3 {[%emt 0:00:40]} 51. g4 {[%emt 0:00:00]} Qd1 {[%emt 0:01:15]} 52. Kg5 {[%emt 0:00:00]} c4 {[%emt 0:00:19]} 53. h5 {[%emt 0:00:00]} Kb4 {[%emt 0:00:38]} 54. Qe7+ {[%emt 0:00:00]} Kb3 {[%emt 0:00:44]} 55. Qe6 {[%emt 0:00:00]} Kb4 {[%emt 0:00:39]} 56. Qb6+ {[%emt 0:00:00]} Ka3 {[%emt 0:00:25]} 57. Qc5+ {[%emt 0:00:00]} Kb3 {[%emt 0:00:05]} 58. Qb5+ {[%emt 0:00:00]} Kc3 {[%emt 0:00:03]} 59. h6 {[%emt 0:00:00]} Qd2+ {[%emt 0:00:39]} 60. Kg6 {[%emt 0:00:00]} Qd6+ {[%emt 0:00:08]} 61. Kg7 {[%emt 0:00:00]} Qe7+ {[%emt 0:00:20]} 62. Kg8 {[%emt 0:00:00]} Qe6+ {[%emt 0:00:12]} 1/2-1/2

[Event "Western Asian Girls Chess-ch 2023"]
[Site "Colombo"]
[Date "2023.12.04"]
[Round "8.2"]
[White "Rindhiya V"]
[Black "Bhagyashree Patil"]
[Result "1-0"]
[ECO "C97"]
[WhiteElo "1876"]
[BlackElo "1830"]
[Annotator "NA RC"]
[PlyCount "159"]
[EventDate "2023.11.30"]
[EventCountry "SRI"]
[SourceTitle "playchess.com"]
[Source "ChessBase"]
[SourceQuality "1"]
[TimeControl "5400+30"]

1. e4 {[%emt 0:00:02]} e5 {[%emt 0:00:30]} 2. Nf3 {[%emt 0:00:03]} Nc6 {[%emt 0:00:03]} 3. Bb5 {[%emt 0:00:05]} a6 {[%emt 0:00:02]} 4. Ba4 {[%emt 0:00:03]} Nf6 {[%emt 0:00:03]} 5. O-O {[%emt 0:00:05]} Be7 {[%emt 0:03:29]} 6. Re1 {[%emt 0:00:07]} b5 {[%emt 0:00:02]} 7. Bb3 {[%emt 0:00:04]} d6 {[%emt 0:00:04]} 8. c3 {[%emt 0:00:04]} O-O {[%emt 0:00:03]} 9. h3 {[%emt 0:00:05]} Na5 {[%emt 0:00:07]} 10. Bc2 {[%emt 0:00:03]} c5 {[%emt 0:00:02]} 11. d4 {[%emt 0:00:05]} Qc7 {[%emt 0:00:02]} 12. d5 {[%emt 0:00:04]} Nc4 {[%emt 0:01:41]} 13. b3 {[%emt 0:00:15]} Nb6 {[%emt 0:00:04]} 14. Nbd2 {[%emt 0:05:53]} Ne8 {[%emt 0:02:52]} 15. g4 {[%emt 0:13:55]} h5 {[%emt 0:07:25]} 16. Nh2 {[%emt 0:05:31]} hxg4 {[%emt 0:03:56]} 17. hxg4 {[%emt 0:00:47]} g6 {[%emt 0:00:28]} 18. Ndf1 {[%emt 0:01:39]} Ng7 {[%emt 0:01:09]} 19. Ng3 {[%emt 0:01:25]} f6 {[%emt 0:02:02]} 20. Be3 {[%emt 0:09:27]} Kf7 {[%emt 0:01:34]} 21. f4 {[%emt 0:07:33]} exf4 {[%emt 1:15:22]} 22. Bxf4 {[%emt 0:00:06]} Nd7 {[%emt 0:00:00]} 23. Rf1 {[%emt 0:19:14]} Ke8 {[%emt 0:00:00]} 24. e5 {[%emt 0:09:00]} g5 {[%emt 0:00:00]} 25. exd6 {[%emt 0:04:49]} Bxd6 {[%emt 0:00:00]} 26. Bxd6 {[%emt 0:00:16]} Qxd6 {[%emt 0:00:00]} 27. Ne4 {[%emt 0:00:26]} Qb6 {[%emt 0:00:00]} 28. Qe2 {[%emt 0:07:59]} Kd8 {[%emt 0:00:00]} 29. c4 {[%emt 0:00:58]} Ne8 {[%emt 0:00:00]} 30. Rae1 {[%emt 0:02:38]} Rh8 {[%emt 0:00:00]} 31. Nxf6 {[%emt 0:05:53]} Nexf6 {[%emt 0:00:00]} 32. Qe7+ {[%emt 0:00:05]} Kc7 {[%emt 0:00:00]} 33. Re6 {[%emt 0:01:00]} Re8 {[%emt 0:00:00]} 34. Rfxf6 {[%emt 0:01:01]} Rxe7 {[%emt 0:00:00]} 35. Rxb6 {[%emt 0:00:03]} Nxf6 {[%emt 0:00:00]} 36. Rxf6 {[%emt 0:00:07]} Re1+ {[%emt 0:00:00]} 37. Kf2 {[%emt 0:00:56]} Rc1 {[%emt 0:00:00]} 38. Be4 {[%emt 0:02:14]} Ra7 {[%emt 0:00:00]} 39. d6+ {[%emt 0:02:39]} Kb8 {[%emt 0:00:00]} 40. Rf8 {[%emt 0:00:03]} Rd7 {[%emt 0:00:00]} 41. Bf5 {[%emt 0:00:23]} Kb7 {[%emt 0:00:00]} 42. Nf3 {[%emt 0:02:17]} bxc4 {[%emt 0:00:00]} 43. Rxc8 {[%emt 0:02:04]} cxb3 {[%emt 0:00:00]} 44. axb3 {[%emt 0:01:04]} Rxd6 {[%emt 0:00:00]} 45. Nxg5 {[%emt 0:00:00]} Rd2+ {[%emt 0:00:00]} 46. Ke3 {[%emt 0:00:23]} Rb2 {[%emt 0:00:00]} 47. Ne4 {[%emt 0:00:32]} Re1+ {[%emt 0:00:00]} 48. Kd3 {[%emt 0:00:11]} Rxb3+ {[%emt 0:00:00]} 49. Kc2 {[%emt 0:00:20]} Rbb1 {[%emt 0:00:00]} 50. Nxc5+ {[%emt 0:00:40]} Kb6 {[%emt 0:00:00]} 51. Rb8+ {[%emt 0:00:16]} Kxc5 {[%emt 0:00:00]} 52. Rxb1 {[%emt 0:00:03]} Re3 {[%emt 0:00:00]} 53. Rg1 {[%emt 0:00:31]} Re5 {[%emt 0:00:00]} 54. Bd3 {[%emt 0:00:10]} Rg5 {[%emt 0:00:00]} 55. Bxa6 {[%emt 0:00:10]} Kd4 {[%emt 0:00:00]} 56. Kd2 {[%emt 0:01:29]} Ke4 {[%emt 0:00:00]} 57. Bc8 {[%emt 0:00:16]} Rd5+ {[%emt 0:00:00]} 58. Ke2 {[%emt 0:00:02]} Rc5 {[%emt 0:00:00]} 59. Bf5+ {[%emt 0:00:11]} Kf4 {[%emt 0:00:00]} 60. Rf1+ {[%emt 0:00:26]} Kg5 {[%emt 0:00:00]} 61. Kf2 {[%emt 0:00:13]} Rc3 {[%emt 0:00:00]} 62. Kg2 {[%emt 0:00:07]} Kh4 {[%emt 0:00:00]} 63. Rh1+ {[%emt 0:00:06]} Kg5 {[%emt 0:00:00]} 64. Rh3 {[%emt 0:00:07]} Rc1 {[%emt 0:00:00]} 65. Rf3 {[%emt 0:00:28]} Kh4 {[%emt 0:00:00]} 66. Kf2 {[%emt 0:01:46]} Ra1 {[%emt 0:00:00]} 67. Rd3 {[%emt 0:00:19]} Kg5 {[%emt 0:00:00]} 68. Kf3 {[%emt 0:00:10]} Rf1+ {[%emt 0:00:00]} 69. Ke4 {[%emt 0:00:12]} Re1+ {[%emt 0:00:00]} 70. Re3 {[%emt 0:00:32]} Ra1 {[%emt 0:00:00]} 71. Ke5 {[%emt 0:00:11]} Ra8 {[%emt 0:00:00]} 72. Kd6 {[%emt 0:00:35]} Ra6+ {[%emt 0:00:00]} 73. Ke7 {[%emt 0:00:19]} Ra7+ {[%emt 0:00:00]} 74. Bd7 {[%emt 0:01:20]} Ra5 {[%emt 0:00:00]} 75. Rf3 {[%emt 0:00:44]} Ra7 {[%emt 0:00:00]} 76. Rf5+ {[%emt 0:00:13]} Kg6 {[%emt 0:00:00]} 77. Rd5 {[%emt 0:00:25]} Kg7 {[%emt 0:00:00]} 78. Ke6 {[%emt 0:00:56]} Ra1 {[%emt 0:00:00]} 79. Kf5 {[%emt 0:00:19]} Ra6 {[%emt 0:00:00]} 80. Be6 {[%emt 0:00:18]} 1-0

[Event "Western Asian Girls Chess-ch 2023"]
[Site "Colombo"]
[Date "2023.12.04"]
[Round "8.3"]
[White "Gunawardhana, Devindya Oshini"]
[Black "Sanudula, K M Dahamdi"]
[Result "1-0"]
[ECO "B13"]
[WhiteElo "1741"]
[BlackElo "1709"]
[Annotator "NA RC"]
[PlyCount "119"]
[EventDate "2023.11.30"]
[EventCountry "SRI"]
[SourceTitle "playchess.com"]
[Source "ChessBase"]
[SourceQuality "1"]
[TimeControl "5400+30"]

1. e4 {[%emt 0:06:30]} c6 {[%emt 0:06:15]} 2. d4 {[%emt 0:00:16]} d5 {[%emt 0:00:05]} 3. exd5 {[%emt 0:00:06]} cxd5 {[%emt 0:00:04]} 4. c4 {[%emt 0:00:09]} Nf6 {[%emt 0:00:04]} 5. Nc3 {[%emt 0:00:14]} Nc6 {[%emt 0:00:04]} 6. Bg5 {[%emt 0:00:15]} Be6 {[%emt 0:00:13]} 7. Be2 {[%emt 0:00:59]} g6 {[%emt 0:01:03]} 8. a3 {[%emt 0:09:59]} Na5 {[%emt 0:10:03]} 9. Bxf6 {[%emt 0:03:33]} exf6 {[%emt 0:00:07]} 10. c5 {[%emt 0:00:12]} Bh6 {[%emt 0:03:54]} 11. Nf3 {[%emt 0:05:52]} O-O {[%emt 0:01:57]} 12. O-O {[%emt 0:02:23]} Bf4 {[%emt 0:02:01]} 13. b4 {[%emt 0:04:17]} Nc6 {[%emt 0:02:37]} 14. Qb3 {[%emt 0:10:00]} Qd7 {[%emt 0:04:47]} 15. Rad1 {[%emt 0:04:32]} g5 {[%emt 0:04:41]} 16. Ne1 {[%emt 0:11:44]} Rfe8 {[%emt 0:01:20]} 17. g3 {[%emt 0:08:11]} Bc7 {[%emt 0:02:06]} 18. Ng2 {[%emt 0:00:14]} f5 {[%emt 0:05:47]} 19. f4 {[%emt 0:06:47]} gxf4 {[%emt 0:00:47]} 20. Nxf4 {[%emt 0:00:05]} Bxf4 {[%emt 0:00:20]} 21. Rxf4 {[%emt 0:00:05]} Red8 {[%emt 0:00:55]} 22. Bb5 {[%emt 0:01:15]} Qe7 {[%emt 0:01:07]} 23. Bxc6 {[%emt 0:00:35]} bxc6 {[%emt 0:00:05]} 24. Qc2 {[%emt 0:03:52]} Qb7 {[%emt 0:00:48]} 25. Rb1 {[%emt 0:04:25]} Kh8 {[%emt 0:00:36]} 26. Qe2 {[%emt 0:01:13]} Qc7 {[%emt 0:00:50]} 27. b5 {[%emt 0:08:05]} Rg8 {[%emt 0:00:34]} 28. Qe3 {[%emt 0:00:37]} Rg4 {[%emt 0:00:39]} 29. b6 {[%emt 0:03:13]} Qb7 {[%emt 0:01:51]} 30. Qe5+ {[%emt 0:00:58]} Rg7 {[%emt 0:01:03]} 31. Rb3 {[%emt 0:01:17]} a6 {[%emt 0:00:41]} 32. Rb1 {[%emt 0:01:19]} Re8 {[%emt 0:00:22]} 33. Qe2 {[%emt 0:00:44]} Rg6 {[%emt 0:01:22]} 34. Qf3 {[%emt 0:02:06]} Kg8 {[%emt 0:01:09]} 35. Re1 {[%emt 0:00:37]} Kf8 {[%emt 0:00:33]} 36. Rh4 {[%emt 0:00:30]} Rg7 {[%emt 0:01:55]} 37. Qf4 {[%emt 0:00:21]} Qb8 {[%emt 0:01:24]} 38. Qxb8 {[%emt 0:02:00]} Rxb8 {[%emt 0:00:03]} 39. Ne2 {[%emt 0:00:00]} Re8 {[%emt 0:01:16]} 40. Nf4 {[%emt 0:00:00]} Bc8 {[%emt 0:00:03]} 41. Rxe8+ {[%emt 0:00:00]} Kxe8 {[%emt 0:00:01]} 42. Rh6 {[%emt 0:00:00]} Bb7 {[%emt 0:00:30]} 43. Kf2 {[%emt 0:01:03]} Ke7 {[%emt 0:00:15]} 44. Rh4 {[%emt 0:00:57]} f6 {[%emt 0:00:19]} 45. Ne2 {[%emt 0:00:41]} Bc8 {[%emt 0:00:54]} 46. Nc1 {[%emt 0:00:12]} Kf7 {[%emt 0:00:13]} 47. Rh6 {[%emt 0:00:38]} Ke6 {[%emt 0:00:38]} 48. Ke3 {[%emt 0:00:26]} Re7 {[%emt 0:00:12]} 49. Kf3 {[%emt 0:00:52]} Rg7 {[%emt 0:00:24]} 50. Nb3 {[%emt 0:00:05]} Re7 {[%emt 0:00:17]} 51. Na5 {[%emt 0:00:07]} Bb7 {[%emt 0:00:01]} 52. Kf4 {[%emt 0:00:41]} Rg7 {[%emt 0:00:07]} 53. h3 {[%emt 0:00:07]} Rf7 {[%emt 0:00:06]} 54. Rh5 {[%emt 0:00:11]} Rg7 {[%emt 0:00:05]} 55. Rxf5 {[%emt 0:00:14]} Re7 {[%emt 0:00:04]} 56. Rh5 {[%emt 0:00:18]} Rg7 {[%emt 0:00:04]} 57. g4 {[%emt 0:00:06]} Rf7 {[%emt 0:00:05]} 58. Rh6 {[%emt 0:00:05]} Ba8 {[%emt 0:00:10]} 59. g5 {[%emt 0:00:15]} Bb7 {[%emt 0:00:06]} 60. Rxf6+ {[%emt 0:04:02]} 1-0

[Event "Western Asian Girls Chess-ch 2023"]
[Site "Colombo"]
[Date "2023.12.04"]
[Round "8.4"]
[White "Shohradova, Lala"]
[Black "Pallie, Ehsha Mishela"]
[Result "1-0"]
[ECO "E17"]
[WhiteElo "1846"]
[BlackElo "1569"]
[Annotator "NA RC"]
[PlyCount "111"]
[EventDate "2023.11.30"]
[EventCountry "SRI"]
[SourceTitle "playchess.com"]
[Source "ChessBase"]
[SourceQuality "1"]
[TimeControl "5400+30"]

1. d4 {[%emt 0:00:01]} Nf6 {[%emt 0:00:06]} 2. c4 {[%emt 0:00:03]} e6 {[%emt 0:00:05]} 3. Nf3 {[%emt 0:00:05]} d5 {[%emt 0:00:05]} 4. g3 {[%emt 0:00:57]} Be7 {[%emt 0:00:11]} 5. Bg2 {[%emt 0:00:05]} O-O {[%emt 0:00:09]} 6. O-O {[%emt 0:00:17]} Nbd7 {[%emt 0:03:45]} 7. Nbd2 {[%emt 0:03:42]} b6 {[%emt 0:03:30]} 8. b3 {[%emt 0:04:00]} Bb7 {[%emt 0:03:39]} 9. Bb2 {[%emt 0:00:48]} Ne4 {[%emt 0:08:43]} 10. Rc1 {[%emt 0:02:24]} a5 {[%emt 0:06:55]} 11. Qc2 {[%emt 0:03:43]} Rc8 {[%emt 0:11:42]} 12. cxd5 {[%emt 0:03:44]} Nxd2 {[%emt 0:03:14]} 13. Qxd2 {[%emt 0:00:49]} exd5 {[%emt 0:02:19]} 14. Ne5 {[%emt 0:00:47]} Nxe5 {[%emt 0:08:42]} 15. dxe5 {[%emt 0:00:33]} Bb4 {[%emt 0:06:31]} 16. Qc2 {[%emt 0:06:21]} c6 {[%emt 0:01:56]} 17. e4 {[%emt 0:02:07]} Qe7 {[%emt 0:03:50]} 18. exd5 {[%emt 0:05:59]} cxd5 {[%emt 0:00:06]} 19. Qd3 {[%emt 0:00:07]} Rxc1 {[%emt 0:11:29]} 20. Rxc1 {[%emt 0:00:01]} Rd8 {[%emt 0:03:43]} 21. Bd4 {[%emt 0:02:12]} Bc5 {[%emt 0:15:26]} 22. Bxc5 {[%emt 0:00:30]} bxc5 {[%emt 0:00:01]} 23. Qb5 {[%emt 0:00:17]} Rc8 {[%emt 0:00:27]} 24. Qxa5 {[%emt 0:02:10]} h6 {[%emt 0:02:39]} 25. Qb5 {[%emt 0:00:53]} Ba8 {[%emt 0:00:58]} 26. Bh3 {[%emt 0:00:53]} Rd8 {[%emt 0:01:00]} 27. Qxc5 {[%emt 0:00:34]} Qxe5 {[%emt 0:00:15]} 28. Bg2 {[%emt 0:01:05]} Qb2 {[%emt 0:02:22]} 29. Qc2 {[%emt 0:00:15]} Qa3 {[%emt 0:00:25]} 30. Rd1 {[%emt 0:00:14]} d4 {[%emt 0:01:17]} 31. Bxa8 {[%emt 0:00:14]} Qxa8 {[%emt 0:00:00]} 32. a4 {[%emt 0:00:21]} Qd5 {[%emt 0:00:27]} 33. Rd3 {[%emt 0:01:48]} Re8 {[%emt 0:00:29]} 34. Qd1 {[%emt 0:00:09]} Qa5 {[%emt 0:00:29]} 35. Kg2 {[%emt 0:00:06]} Re1 {[%emt 0:00:30]} 36. Qf3 {[%emt 0:00:22]} Qc5 {[%emt 0:00:31]} 37. Rd2 {[%emt 0:08:21]} Rc1 {[%emt 0:00:31]} 38. Qe4 {[%emt 0:00:26]} Rc3 {[%emt 0:00:32]} 39. Rxd4 {[%emt 0:00:10]} g6 {[%emt 0:00:21]} 40. Rc4 {[%emt 0:00:26]} Rxc4 {[%emt 0:00:23]} 41. Qxc4 {[%emt 0:00:02]} Qe5 {[%emt 0:00:27]} 42. b4 {[%emt 0:00:06]} g5 {[%emt 0:00:13]} 43. a5 {[%emt 0:00:06]} h5 {[%emt 0:00:21]} 44. a6 {[%emt 0:00:11]} Qb8 {[%emt 0:00:35]} 45. b5 {[%emt 0:00:10]} Qa8+ {[%emt 0:00:49]} 46. Qc6 {[%emt 0:00:05]} Qa7 {[%emt 0:00:15]} 47. Qb7 {[%emt 0:00:09]} Qxb7+ {[%emt 0:00:22]} 48. axb7 {[%emt 0:00:04]} Kg7 {[%emt 0:00:03]} 49. b8=Q {[%emt 0:00:06]} Kh7 {[%emt 0:00:04]} 50. b6 {[%emt 0:00:06]} Kg7 {[%emt 0:00:03]} 51. b7 {[%emt 0:00:05]} Kh7 {[%emt 0:00:02]} 52. Qf8 {[%emt 0:00:15]} Kg6 {[%emt 0:00:06]} 53. b8=Q {[%emt 0:00:07]} Kf6 {[%emt 0:00:04]} 54. Qbd6+ {[%emt 0:00:17]} Kf5 {[%emt 0:00:05]} 55. Qxf7+ {[%emt 0:00:10]} Ke4 {[%emt 0:00:02]} 56. Qf3# {[%emt 0:58:32]} 1-0

[Event "Western Asian Girls Chess-ch 2023"]
[Site "Colombo"]
[Date "2023.12.04"]
[Round "8.5"]
[White "Gunasekara, K P K Hesara"]
[Black "Bayrambayeva, Ogulsuray"]
[Result "0-1"]
[ECO "C18"]
[WhiteElo "1352"]
[BlackElo "1909"]
[Annotator "NA RC"]
[PlyCount "37"]
[EventDate "2023.11.30"]
[EventCountry "SRI"]
[SourceTitle "playchess.com"]
[Source "ChessBase"]
[SourceQuality "1"]
[TimeControl "5400+30"]

1. e4 {[%emt 0:00:07]} e6 {[%emt 0:00:22]} 2. d4 {[%emt 0:00:23]} d5 {[%emt 0:00:10]} 3. Nc3 {[%emt 0:00:12]} Bb4 {[%emt 0:00:20]} 4. e5 {[%emt 0:00:23]} c5 {[%emt 0:02:48]} 5. a3 {[%emt 0:00:16]} Bxc3+ {[%emt 0:00:30]} 6. bxc3 {[%emt 0:00:09]} Ne7 {[%emt 0:00:33]} 7. Qg4 {[%emt 0:01:56]} cxd4 {[%emt 0:02:55]} 8. Qxg7 {[%emt 0:02:23]} Rg8 {[%emt 0:00:22]} 9. Qxh7 {[%emt 0:00:24]} dxc3 {[%emt 0:01:03]} 10. h4 {[%emt 0:01:02]} Nbc6 {[%emt 0:02:30]} 11. f4 {[%emt 0:01:01]} Nd4 {[%emt 0:07:35]} 12. Rh3 {[%emt 0:14:03]} Qc7 {[%emt 0:02:21]} 13. Be3 {[%emt 1:14:41]} Ndf5 {[%emt 0:02:24]} 14. Bf2 {[%emt 0:00:00]} Bd7 {[%emt 0:01:00]} 15. Qh5 {[%emt 0:00:00]} O-O-O {[%emt 0:04:05]} 16. Qf3 {[%emt 0:00:00]} d4 {[%emt 0:00:32]} 17. g4 {[%emt 0:00:00]} Bc6 {[%emt 0:01:24]} 18. Qe2 {[%emt 0:00:00]} Nh6 {[%emt 0:01:08]} 19. Rg3 {[%emt 0:00:00]} 0-1